fUST/lending_fUST_20251023
["ID","MTS","AMOUNT","RATE_DAILY","PERIOD"]
[392112292,1761167453832,-500.0,0.0004,7]
[392112293,1761167453842,-500.0,0.0004,7]
[392112294,1761167453852,-500.0,0.0004,7]
[392112295,1761167453862,-200.0,0.0004,7]
[392112296,1761167453872,-500.0,0.0004,7]
[392112297,1761167453881,-500.0,0.0004,7]
[392112298,1761167453891,-601.6,0.0004,7]
[392112299,1761167453901,-500.0,0.0004,7]
[392112300,1761167453911,-500.0,0.0004,7]
[392112301,1761167453921,-500.0,0.0004,7]
[392112302,1761167453931,-500.0,0.0004,7]
[392112303,1761167453940,-500.0,0.0004,7]
[392112304,1761167453950,-1458.09,0.0004,7]
[392112305,1761167453960,-2021.62,0.0004,7]
[392112306,1761167453970,-500.0,0.0004,7]
[392112307,1761167453980,-500.0,0.0004,7]
[392112308,1761167453991,-33234.34,0.0004,7]
[392112309,1761167454001,-500.0,0.0004,7]
[392112310,1761167454010,-3034.95,0.0004,7]
[392112311,1761167454020,-1000.0,0.0004,2]
[392112312,1761167454030,-755.0,0.0004,7]
[392112313,1761167454040,-500.0,0.0004,7]
[392112314,1761167454049,-500.0,0.0004,7]
[392112315,1761167454059,-2807.04,0.0004,7]
[392112316,1761167454068,-500.0,0.0004,7]
[392112317,1761167454079,-500.0,0.0004,7]
[392112318,1761167454089,-1437.31,0.0004,7]
[392112319,1761167454099,-500.0,0.0004,7]
[392112320,1761167454109,-500.0,0.0004,5]
[392112321,1761167454118,-1979.2,0.0004,7]
[392112322,1761167454128,-450.0,0.00040016,5]
[392112323,1761167454138,-800.0,0.00040016,5]
[392112324,1761167454147,-500.0,0.00040273,7]
[392112325,1761167454156,-500.0,0.00040273,7]
[392112326,1761167454165,-500.0,0.00040273,7]
[392112327,1761167454175,-3108.23,0.00040273,2]
[392112328,1761167454184,-582.36,0.00040273,7]
[392112329,1761167454194,-712.09,0.00040273,7]
[392112330,1761167454203,-3993.05,0.00040273,7]
[392112331,1761167454214,-500.0,0.00040273,7]
[392112332,1761167454223,-500.0,0.00040273,7]
[392112333,1761167454232,-500.0,0.00040273,7]
[392112334,1761167454242,-500.0,0.00040273,7]
[392112335,1761167454251,-500.0,0.00040273,7]
[392112336,1761167454260,-500.0,0.00040273,7]
[392112337,1761167454270,-500.0,0.00040273,7]
[392112338,1761167454279,-583.04,0.00040273,7]
[392112339,1761167454289,-606.32,0.00040273,7]
[392112340,1761167454298,-500.0,0.00040273,7]
[392112341,1761167454308,-500.0,0.00040273,7]
[392112342,1761167454322,-2565.11,0.00040273,7]
[392112343,1761167454331,-5859.34,0.00040273,7]
[392112344,1761167454341,-1360.35,0.00040273,7]
[392112345,1761167454351,-500.0,0.00040273,7]
[392112346,1761167454361,-500.0,0.00040273,7]
[392112347,1761167454371,-595.41,0.00040273,7]
[392112348,1761167454381,-500.0,0.00040273,7]
[392112349,1761167454392,-636.94,0.00040273,7]
[392112350,1761167454402,-836.05916736,0.00040273,2]
[392112351,1761167454411,-500.0,0.00040273,7]
[392112352,1761167454421,-500.0,0.00040273,7]
[392112353,1761167454432,-1615.11,0.00040273,7]
[392112354,1761167454441,-500.0,0.00040273,7]
[392112355,1761167454450,-555.53,0.00040273,7]
[392112356,1761167454459,-500.0,0.00040273,7]
[392112357,1761167454469,-252.13851538,0.00040273,7]
[392112358,1761167454479,-500.0,0.00040273,7]
[392112359,1761167454490,-500.0,0.00040273,7]
[392112360,1761167454499,-500.0,0.00040273,7]
[392112361,1761167454509,-500.0,0.00040273,7]
[392112362,1761167454520,-500.0,0.00040273,7]
[392112363,1761167454529,-500.0,0.00040273,7]
[392112364,1761167454539,-500.0,0.00040273,7]
[392112365,1761167454549,-500.0,0.00040273,7]
[392112366,1761167454559,-500.0,0.00040273,7]
[392112367,1761167454569,-12709.91,0.00040273,3]
[392112368,1761167454579,-500.0,0.00040273,7]
[392112369,1761167454589,-500.0,0.00040273,7]
[392112370,1761167454599,-500.0,0.00040273,7]
[392112371,1761167454608,-500.0,0.00040273,7]
[392112372,1761167454618,-200.0,0.00040273,7]
[392112373,1761167454628,-500.0,0.00040273,7]
[392112374,1761167454637,-500.0,0.00040273,7]
[392112375,1761167454646,-3457.59,0.00040273,120]
[392112376,1761167454656,-601.6,0.00040273,7]
[392112377,1761167454666,-500.0,0.00040273,7]
[392112378,1761167454676,-500.0,0.00040273,7]
[392112379,1761167454685,-500.0,0.00040273,7]
[392112380,1761167454695,-500.0,0.00040273,7]
[392112381,1761167454705,-500.0,0.00040273,7]
[392112382,1761167454714,-1458.09,0.00040273,7]
[392112383,1761167454724,-2021.62,0.00040273,7]
[392112384,1761167454733,-500.0,0.00040273,7]
[392112385,1761167454745,-500.0,0.00040273,7]
[392112386,1761167454754,-33234.34,0.00040273,7]
[392112387,1761167454764,-500.0,0.00040273,7]
[392112388,1761167454774,-3034.95,0.00040273,7]
[392112389,1761167454784,-1000.0,0.00040273,2]
[392112390,1761167454793,-755.0,0.00040273,7]
[392112391,1761167454802,-274.40269763,0.00040273,7]
[392112392,1761167454811,-500.0,0.00040273,7]
[392112393,1761167454820,-2807.04,0.00040273,7]
[392112394,1761167454831,-500.0,0.00040273,7]
[392112395,1761167454840,-500.0,0.00040273,7]
[392112396,1761167454849,-1437.31,0.00040273,7]
[392112397,1761167454858,-500.0,0.00040273,7]
[392112398,1761167454868,-500.0,0.00040273,5]
[392112399,1761167454877,-1979.2,0.00040273,7]
[392112400,1761167454887,-999.69143358,0.0004036,30]
[392112401,1761167454896,-867.28769345,0.00040364,120]
[392112402,1761167454959,-1358.33,0.000405,7]
[392112403,1761167454970,-304.8997414,0.00040521,30]
[392112404,1761167454979,-500.0,0.00040547,7]
[392112405,1761167454992,-500.0,0.00040547,7]
[392112406,1761167455001,-500.0,0.00040547,7]
[392112407,1761167455011,-3108.23,0.00040547,2]
[392112408,1761167455020,-582.36,0.00040547,7]
[392112409,1761167455029,-712.09,0.00040547,7]
[392112410,1761167455037,-3993.05,0.00040547,7]
[392112411,1761167455045,-500.0,0.00040547,7]
[392112412,1761167455053,-500.0,0.00040547,7]
[392112413,1761167455062,-500.0,0.00040547,7]
[392112414,1761167455070,-500.0,0.00040547,7]
[392112415,1761167455078,-500.0,0.00040547,7]
[392112416,1761167455087,-603.6921117,0.00040547,7]
[392112417,1761167455097,-500.0,0.00040547,7]
[392112418,1761167455106,-583.04,0.00040547,7]
[392112419,1761167455116,-606.32,0.00040547,7]
[392112420,1761167455126,-500.0,0.00040547,7]
[392112421,1761167455136,-500.0,0.00040547,7]
[392112422,1761167455145,-2565.11,0.00040547,7]
[392112423,1761167455155,-5859.34,0.00040547,7]
[392112424,1761167455165,-1360.35,0.00040547,7]
[392112425,1761167455175,-500.0,0.00040547,7]
[392112426,1761167455184,-500.0,0.00040547,7]
[392112427,1761167455193,-595.41,0.00040547,7]
[392112428,1761167455203,-500.0,0.00040547,7]
[392112429,1761167455212,-636.94,0.00040547,7]
[392112430,1761167455221,-500.0,0.00040547,7]
[392112431,1761167455231,-500.0,0.00040547,7]
[392112432,1761167455242,-1615.11,0.00040547,7]
[392112433,1761167455251,-506.69685984,0.00040547,7]
[392112434,1761167455261,-555.53,0.00040547,7]
[392112435,1761167455272,-500.0,0.00040547,7]
[392112436,1761167455282,-227.92025873,0.00040547,7]
[392112437,1761167455291,-500.0,0.00040547,7]
[392112438,1761167455301,-500.0,0.00040547,7]
[392112439,1761167455313,-500.0,0.00040547,7]
[392112440,1761167455324,-500.0,0.00040547,7]
[392112441,1761167455334,-500.0,0.00040547,7]
[392112442,1761167455343,-500.0,0.00040547,7]
[392112443,1761167455353,-500.0,0.00040547,7]
[392112444,1761167455363,-500.0,0.00040547,7]
[392112445,1761167455373,-12709.91,0.00040547,3]
[392112446,1761167455382,-500.0,0.00040547,7]
[392112447,1761167455393,-500.0,0.00040547,7]
[392112448,1761167455403,-500.0,0.00040547,7]
[392112449,1761167455412,-607.55434193,0.00040547,7]
[392112450,1761167455422,-200.0,0.00040547,7]
[392112451,1761167455431,-500.0,0.00040547,7]
[392112452,1761167455440,-459.01686144,0.00040547,7]
[392112453,1761167455449,-601.6,0.00040547,7]
[392112454,1761167455459,-500.0,0.00040547,7]
[392112455,1761167455468,-500.0,0.00040547,7]
[392112456,1761167455478,-500.0,0.00040547,7]
[392112457,1761167455489,-500.0,0.00040547,7]
[392112458,1761167455498,-500.0,0.00040547,7]
[392112459,1761167455508,-1458.09,0.00040547,7]
[392112460,1761167455518,-2021.62,0.00040547,7]
[392112461,1761167455526,-500.0,0.00040547,7]
[392112462,1761167455535,-500.0,0.00040547,7]
[392112463,1761167455545,-33234.34,0.00040547,7]
[392112464,1761167455555,-500.0,0.00040547,7]
[392112465,1761167455565,-3034.95,0.00040547,7]
[392112466,1761167455574,-1000.0,0.00040547,2]
[392112467,1761167455584,-755.0,0.00040547,7]
[392112468,1761167455593,-500.0,0.00040547,7]
[392112469,1761167455602,-2807.04,0.00040547,7]
[392112470,1761167455611,-500.0,0.00040547,7]
[392112471,1761167455621,-500.0,0.00040547,7]
[392112472,1761167455631,-1437.31,0.00040547,7]
[392112473,1761167455640,-500.0,0.00040547,7]
[392112474,1761167455649,-561.97570352,0.00040547,5]
[392112475,1761167455659,-1979.2,0.00040547,7]
[392112476,1761167455668,-411.0,0.00040563,2]
[392112477,1761167455678,-435.92436597,0.00040564,5]
[392112478,1761167455687,-224.38633584,0.00040564,5]
[392112479,1761167455696,-556.54256593,0.000406,120]
[392112480,1761167455705,-179.02309921,0.000406,120]
[392112481,1761167455715,-194.07751545,0.000406,120]
[392112482,1761167455724,-195.16799223,0.000406,120]
[392112483,1761167455733,-632.0,0.00040602,2]
[392112484,1761167455745,-983.0,0.00040602,2]
[392112485,1761167455754,-2164.0,0.00040602,2]
[392112486,1761167455763,-500.0,0.00040821,7]
[392112487,1761167455772,-500.0,0.00040821,7]
[392112488,1761167455781,-454.56803323,0.00040821,7]
[392112489,1761167455790,-3108.23,0.00040821,2]
[392112490,1761167455799,-582.36,0.00040821,7]
[392112491,1761167455809,-712.09,0.00040821,7]
[392112492,1761167455818,-3993.05,0.00040821,7]
[392112493,1761167455827,-500.0,0.00040821,7]
[392112494,1761167455837,-500.0,0.00040821,7]
[392112495,1761167455848,-500.0,0.00040821,7]
[392112496,1761167455859,-500.0,0.00040821,7]
[392112497,1761167455867,-500.0,0.00040821,7]
[392112498,1761167455877,-527.96813995,0.00040821,7]
[392112499,1761167455887,-583.04,0.00040821,7]
[392112500,1761167455896,-606.32,0.00040821,7]
[392112501,1761167455905,-500.0,0.00040821,7]
[392112502,1761167455915,-500.0,0.00040821,7]
[392112503,1761167455924,-2565.11,0.00040821,7]
[392112504,1761167455933,-5859.34,0.00040821,7]
[392112505,1761167455995,-1360.35,0.00040821,7]
[392112506,1761167456005,-500.0,0.00040821,7]
[392112507,1761167456015,-500.0,0.00040821,7]
[392112508,1761167456025,-595.41,0.00040821,7]
[392112509,1761167456035,-500.0,0.00040821,7]
[392112510,1761167456043,-636.94,0.00040821,7]
[392112511,1761167456053,-500.0,0.00040821,7]
[392112512,1761167456063,-500.0,0.00040821,7]
[392112513,1761167456073,-1615.11,0.00040821,7]
[392112514,1761167456082,-555.53,0.00040821,7]
[392112515,1761167456092,-500.0,0.00040821,7]
[392112516,1761167456101,-500.0,0.00040821,7]
[392112517,1761167456111,-500.0,0.00040821,7]
[392112518,1761167456121,-500.0,0.00040821,7]
[392112519,1761167456131,-500.0,0.00040821,7]
[392112520,1761167456140,-586.06168552,0.00040821,7]
[392112521,1761167456149,-500.0,0.00040821,7]
[392112522,1761167456158,-500.0,0.00040821,7]
[392112523,1761167456167,-500.0,0.00040821,7]
[392112524,1761167456177,-12709.91,0.00040821,3]
[392112525,1761167456187,-500.0,0.00040821,7]
[392112526,1761167456196,-500.0,0.00040821,7]
[392112527,1761167456206,-500.0,0.00040821,7]
[392112528,1761167456217,-200.0,0.00040821,7]
[392112529,1761167456228,-504.51847406,0.00040821,7]
[392112530,1761167456237,-601.6,0.00040821,7]
[392112531,1761167456247,-500.0,0.00040821,7]
[392112532,1761167456256,-500.0,0.00040821,7]
[392112533,1761167456266,-500.0,0.00040821,7]
[392112534,1761167456275,-500.0,0.00040821,7]
[392112535,1761167456285,-500.0,0.00040821,7]
[392112536,1761167456297,-1458.09,0.00040821,7]
[392112537,1761167456306,-2021.62,0.00040821,7]
[392112538,1761167456319,-500.0,0.00040821,7]
[392112539,1761167456328,-500.0,0.00040821,7]
[392112540,1761167456338,-33234.34,0.00040821,7]
[392112541,1761167456348,-500.0,0.00040821,7]
[392112542,1761167456358,-3034.95,0.00040821,7]
[392112543,1761167456368,-1000.0,0.00040821,2]
[392112544,1761167456377,-755.0,0.00040821,7]
[392112545,1761167456389,-500.0,0.00040821,7]
[392112546,1761167456399,-2807.04,0.00040821,7]
[392112547,1761167456408,-500.0,0.00040821,7]
[392112548,1761167456418,-500.0,0.00040821,7]
[392112549,1761167456428,-1437.31,0.00040821,7]
[392112550,1761167456437,-500.0,0.00040821,7]
[392112551,1761167456447,-52623.88137519,0.00041,10]
[392112552,1761167456549,-791.91524317,0.00041,10]
[392112553,1761167456561,-480.0,0.00041,10]
[392112554,1761167456893,-599.10118725,0.00038356,7]
[392112555,1761167456903,-500.0,0.00038356,7]
[392112556,1761167456912,-500.0,0.00038356,7]
[392112557,1761167456921,-150.61501275,0.00040821,7]
[392112558,1761167456933,-625.00001249,0.00040821,7]
[392112559,1761167456993,-320.94,0.00040821,7]
[392112560,1761167548425,200.0,0.00024549,10]
[392112561,1761167548739,200.0,0.00024549,10]
[392112562,1761167549092,200.0,0.00024549,10]
[392112563,1761167549377,205.687107,0.00024549,10]
[392112564,1761167678872,264.131979,0.00023561,2]
[392112565,1761167930308,535.381987,0.00013699,2]
[392112566,1761167930519,535.381987,0.00020187,2]
[392112594,1761168526965,198.8,0.00024,2]
[392112685,1761168636107,-160.0,0.00024464,2]
[392112686,1761168636117,-351.38832693,0.0002447,2]
[392112687,1761168636127,-300.0,0.00024472,2]
[392112688,1761168636138,-300.0,0.00024472,2]
[392112689,1761168636147,-300.0,0.00024472,2]
[392112690,1761168636157,-300.0,0.00024472,2]
[392112691,1761168636167,-1200.0,0.00024472,2]
[392112692,1761168636177,-300.0,0.00024472,2]
[392112693,1761168636187,-670.08226782,0.00024473,2]
[392112694,1761168636197,-8447.8614928,0.00024473,2]
[392112695,1761168636207,-1623.52233096,0.00024473,2]
[392112696,1761168636216,-536.29,0.00024539,3]
[392112697,1761168636227,-268.14,0.00024539,3]
[392112698,1761168636236,-804.47,0.00024539,3]
[392112699,1761168636245,-500.0,0.00024548,2]
[392112700,1761168636255,-425.27196494,0.00024548,2]
[392112701,1761168636264,-500.0,0.00024548,2]
[392112702,1761168636274,-473.12734395,0.00024548,2]
[392112703,1761168636284,-437.8576678,0.00024548,2]
[392112704,1761168636293,-257.59418656,0.00024548,2]
[392112705,1761168636303,-627.48559694,0.00024548,2]
[392112706,1761168636313,-500.0,0.00024548,2]
[392112707,1761168636322,-500.0,0.00024548,2]
[392112708,1761168636331,-187.46498285,0.00024548,2]
[392112709,1761168636341,-500.0,0.00024548,2]
[392112710,1761168636352,-500.0,0.00024548,2]
[392112711,1761168636361,-500.0,0.00024548,2]
[392112712,1761168636370,-500.0,0.00024548,2]
[392112713,1761168636380,-500.0,0.00024548,2]
[392112714,1761168636389,-500.0,0.00024548,2]
[392112715,1761168636399,-539.42080624,0.00024548,2]
[392112716,1761168636408,-500.0,0.00024548,2]
[392112717,1761168636417,-500.0,0.00024548,2]
[392112718,1761168636427,-500.0,0.00024548,2]
[392112719,1761168636436,-500.0,0.00024548,2]
[392112720,1761168636446,-500.0,0.00024548,2]
[392112721,1761168636455,-500.0,0.00024548,2]
[392112722,1761168636464,-500.0,0.00024548,2]
[392112723,1761168636474,-450.0,0.00024548,2]
[392112724,1761168636483,-500.0,0.00024548,2]
[392112725,1761168636493,-500.0,0.00024548,2]
[392112726,1761168636502,-500.0,0.00024548,2]
[392112727,1761168636511,-582.63333523,0.00024548,2]
[392112728,1761168636520,-500.0,0.00024548,2]
[392112729,1761168636530,-500.0,0.00024548,2]
[392112730,1761168636539,-582.33148598,0.00024548,2]
[392112731,1761168636548,-500.0,0.00024548,2]
[392112732,1761168636557,-500.0,0.00024548,2]
[392112733,1761168636566,-500.0,0.00024548,2]
[392112734,1761168636575,-500.0,0.00024548,2]
[392112735,1761168636585,-500.0,0.00024548,2]
[392112736,1761168636596,-500.0,0.00024548,2]
[392112737,1761168636605,-370000.0,0.00024549,2]
[392112738,1761168636615,-500.0,0.00024573,2]
[392112739,1761168636624,-500.0,0.00024573,2]
[392112740,1761168636633,-10597.24,0.000246,7]
[392112741,1761168636642,-24959.77217659,0.0002465,2]
[392112742,1761168636652,-1634.40427296,0.000248,2]
[392112743,1761168636661,-500.99787454,0.00024873,2]
[392112744,1761168636671,-500.0,0.00024873,2]
[392112745,1761168636680,-500.0,0.00024873,2]
[392112746,1761168636689,-619.07400712,0.00024873,2]
[392112747,1761168636699,-500.0,0.00024873,2]
[392112748,1761168636709,-500.0,0.00024873,2]
[392112749,1761168636718,-500.0,0.00024873,2]
[392112750,1761168636728,-500.0,0.00024873,2]
[392112751,1761168636737,-500.0,0.00024873,2]
[392112752,1761168636746,-500.0,0.00024873,2]
[392112753,1761168636755,-500.0,0.00024873,2]
[392112754,1761168636764,-500.0,0.00024873,2]
[392112755,1761168636773,-500.0,0.00024873,2]
[392112756,1761168636782,-500.0,0.00024873,2]
[392112757,1761168636792,-500.0,0.00024873,2]
[392112758,1761168636801,-158.51248006,0.00024873,2]
[392112759,1761168636810,-500.0,0.00024873,2]
[392112760,1761168636819,-500.0,0.00024873,2]
[392112761,1761168636831,-500.0,0.00024873,2]
[392112762,1761168636840,-500.0,0.00024873,2]
[392112763,1761168636850,-406.72294032,0.00024873,2]
[392112764,1761168636860,-162.28282621,0.00024873,2]
[392112765,1761168636871,-157.70898129,0.00024873,2]
[392112766,1761168636880,-500.0,0.00024873,2]
[392112767,1761168636889,-565.25190032,0.00024873,2]
[392112768,1761168636898,-325.53850932,0.00024873,2]
[392112769,1761168636909,-294.19273897,0.00024873,2]
[392112770,1761168636919,-500.0,0.00024873,2]
[392112771,1761168636928,-501.79118445,0.00024873,2]
[392112772,1761168636938,-500.0,0.00024873,2]
[392112773,1761168636947,-294.520661,0.000249,2]
[392112774,1761168636956,-168.412364,0.000249,2]
[392112775,1761168636966,-401.95395,0.000249,2]
[392112776,1761168636975,-304.8997414,0.000249,2]
[392112777,1761168636985,-481858.759699,0.000249,2]
[392112778,1761168636995,-89349.51063744,0.0002499,2]
[392112779,1761168637004,-1076.36717253,0.00025,2]
[392112780,1761168637013,-1410.91358904,0.00025,2]
[392112781,1761168637022,-300.0,0.00025039,20]
[392112782,1761168637033,-300.0,0.00025039,20]
[392112783,1761168637043,-300.0,0.00025039,20]
[392112784,1761168637053,-300.0,0.00025039,20]
[392112785,1761168637062,-300.0,0.00025039,20]
[392112786,1761168637071,-300.0,0.00025039,20]
[392112787,1761168637081,-300.0,0.00025039,20]
[392112788,1761168637090,-300.0,0.00025039,20]
[392112789,1761168637190,-300.0,0.00025039,20]
[392112790,1761168637200,-300.0,0.00025039,20]
[392112791,1761168637209,-300.0,0.00025039,20]
[392112792,1761168637220,-300.0,0.00025039,20]
[392112793,1761168637231,-300.0,0.00025039,20]
[392112794,1761168637240,-300.0,0.00025039,20]
[392112795,1761168637250,-300.0,0.00025039,20]
[392112796,1761168637259,-600.0,0.00025039,20]
[392112797,1761168637269,-507.94926773,0.00025121,2]
[392112798,1761168637278,-500.0,0.00025121,2]
[392112799,1761168637287,-271.48711904,0.00025147,2]
[392112800,1761168637296,-418.19602831,0.00025421,2]
[392112801,1761168637306,-1000.0,0.00025421,2]
[392112802,1761168637315,-500.0,0.00025421,2]
[392112803,1761168637325,-500.0,0.00025421,2]
[392112804,1761168637335,-500.0,0.00025421,2]
[392112805,1761168637344,-1000.0,0.00025421,2]
[392112806,1761168637354,-1000.0,0.00025421,2]
[392112807,1761168637363,-530.93053923,0.00025421,2]
[392112808,1761168637373,-310.45424066,0.00025421,2]
[392112809,1761168637383,-1000.0,0.00025421,2]
[392112810,1761168637392,-1000.0,0.00025421,2]
[392112811,1761168637402,-1000.0,0.00025421,2]
[392112812,1761168637411,-1000.0,0.00025421,2]
[392112813,1761168637420,-505.11398729,0.00025421,2]
[392112814,1761168637429,-500.0,0.00025421,2]
[392112815,1761168637438,-1000.0,0.00025421,2]
[392112816,1761168637447,-500.45449464,0.00025421,2]
[392112817,1761168637456,-1000.0,0.00025421,2]
[392112818,1761168637466,-294.520661,0.00025562,2]
[392112819,1761168637475,-159.354228,0.00025562,2]
[392112820,1761168637484,-168.412364,0.00025562,2]
[392112821,1761168637494,-401.95395,0.00025562,2]
[392112822,1761168637503,-204.30053412,0.00025658,2]
[392112823,1761168637512,-3358.92651662,0.000257,2]
[392112825,1761168637522,-1623.52233095,0.00025755,2]
[392112826,1761168637531,-1072.58,0.00025909,3]
[392112827,1761168637540,-536.28,0.00025909,3]
[392112828,1761168637549,-1500.0,0.00025968,2]
[392112829,1761168637559,-631.20087286,0.00025968,2]
[392112830,1761168637568,-499.94951459,0.00025968,2]
[392112832,1761168637577,-1500.0,0.00025968,2]
[392112834,1761168637587,-1240.99268942,0.00025968,2]
[392112835,1761168637596,-1500.0,0.00025968,2]
[392112836,1761168637606,-1500.0,0.00025968,2]
[392112837,1761168637615,-1500.0,0.00025968,2]
[392112838,1761168637624,-2715.97002093,0.00026,2]
[392112839,1761168637634,-47.60113544,0.00026078,2]
[392112840,1761168637651,-103.39886456,0.00026078,2]
[392112841,1761168637661,-151.0,0.00026078,2]
[392112842,1761168637671,-216.8402371,0.00026078,2]
[392112843,1761168637680,-294.520661,0.00026224,2]
[392112844,1761168637689,-159.354228,0.00026224,2]
[392112845,1761168637698,-168.412364,0.00026224,2]
[392112846,1761168637708,-401.95395,0.00026224,2]
[392112848,1761168637717,-414.63822577,0.0002647,2]
[392112849,1761168637727,-1395.08688941,0.00026516,2]
[392112850,1761168637736,-150.11530037,0.00026516,2]
[392112851,1761168637751,-1849.88469963,0.00026516,2]
[392112852,1761168637760,-2000.0,0.00026516,2]
[392112853,1761168637769,-2000.0,0.00026516,2]
[392112854,1761168637779,-1525.74586575,0.00026516,2]
[392112855,1761168637789,-105.96903462,0.00026526,2]
[392112857,1761168637801,-194.03096538,0.00026526,2]
[392112859,1761168637810,-420.0,0.00026526,2]
[392112860,1761168637819,-420.0,0.00026526,2]
[392112863,1761168637833,-303.0,0.00026526,2]
[392112864,1761168637843,-420.0,0.00026526,2]
[392112866,1761168637853,-500.0,0.00026533,2]
[392112868,1761168637863,-212.61274819,0.00026533,2]
[392112870,1761168637873,-502.66916721,0.00026533,2]
[392112872,1761168637882,-501.06798052,0.00026533,2]
[392112874,1761168637891,-500.0,0.00026533,2]
[392112876,1761168637900,-500.0,0.00026533,2]
[392112877,1761168637912,-500.0,0.00026533,2]
[392112879,1761168637921,-500.0,0.00026533,2]
[392112881,1761168637930,-503.58629536,0.00026533,2]
[392112883,1761168637938,-500.0,0.00026533,2]
[392112885,1761168637947,-548.19929627,0.00026533,2]
[392112887,1761168637956,-502.11075442,0.00026533,2]
[392112889,1761168637966,-500.0,0.00026533,2]
[392112891,1761168637975,-500.58622512,0.00026533,2]
[392112893,1761168637984,-500.0,0.00026533,2]
[392112896,1761168637994,-500.0,0.00026533,2]
[392112899,1761168638003,-500.0,0.00026533,2]
[392112901,1761168638012,-500.0,0.00026533,2]
[392112904,1761168638021,-500.0,0.00026533,2]
[392112906,1761168638030,-500.0,0.00026533,2]
[392112908,1761168638039,-500.0,0.00026533,2]
[392112909,1761168638049,-1680.0,0.00026646,2]
[392112911,1761168638058,-535.381987,0.00026676,2]
[392112913,1761168638067,-312.0,0.0002672,2]
[392112915,1761168638076,-294.520661,0.00026886,2]
[392112917,1761168638086,-159.354228,0.00026886,2]
[392112919,1761168638095,-168.412364,0.00026886,2]
[392112920,1761168638105,-401.95395,0.00026886,2]
[392112922,1761168638114,-2085.41,0.00026907,2]
[392112923,1761168638123,-204.30053412,0.0002699,2]
[392112924,1761168638132,-10597.24,0.00027,7]
[392112925,1761168638142,-7045.5,0.00027,2]
[392112926,1761168638151,-627.23519524,0.00027,3]
[392112927,1761168638161,-1623.52233095,0.00027037,2]
[392112928,1761168638170,-2500.0,0.00027064,2]
[392112929,1761168638180,-2500.0,0.00027064,2]
[392112930,1761168638189,-2500.0,0.00027064,2]
[392112931,1761168638199,-597.77637791,0.00027081,2]
[392112932,1761168638209,-1002.70253193,0.00027081,2]
[392112933,1761168638218,-1000.0,0.00027081,2]
[392112934,1761168638228,-502.14047218,0.00027081,2]
[392112935,1761168638237,-1000.0,0.00027081,2]
[392112936,1761168638247,-1000.0,0.00027081,2]
[392112937,1761168638256,-500.0,0.00027081,2]
[392112938,1761168638265,-502.46996771,0.00027081,2]
[392112939,1761168638274,-1000.0,0.00027081,2]
[392112940,1761168638284,-1239.21596748,0.00027187,2]
[392112941,1761168638387,-500.0,0.00024548,2]
[392112942,1761168638397,-4500.04050308,0.00027187,2]
[392112943,1761168638408,-2708.60502223,0.00027187,2]
[392112944,1761168638418,-198.74233549,0.0002739,2]
[392112945,1761168638427,-150.0,0.0002739,2]